fUSD/lending_fUSD_20260515
["ID","MTS","AMOUNT","RATE_DAILY","PERIOD"]
[422267164,1778775040000,-519.62,0.00013699,2]
[422267166,1778775040000,-166.66,0.00013699,2]
[422267144,1778775040000,-500.0,0.00013698,2]
[422267142,1778775040000,-500.0,0.00013698,2]
[422267143,1778775040000,-500.0,0.00013698,2]
[422267202,1778775040000,-150.0,0.00013851,2]
[422267145,1778775040000,-500.0,0.00013698,2]
[422267147,1778775040000,-528.72285932,0.00013698,2]
[422267146,1778775040000,-500.0,0.00013698,2]
[422267157,1778775040000,-500.0,0.00013698,2]
[422267148,1778775040000,-500.0,0.00013698,2]
[422267153,1778775040000,-500.0,0.00013698,2]
[422267150,1778775040000,-500.0,0.00013698,2]
[422267158,1778775040000,-500.0,0.00013698,2]
[422267149,1778775040000,-500.0,0.00013698,2]
[422267131,1778775040000,-500.0,0.00013698,2]
[422267161,1778775040000,-500.0,0.00013698,2]
[422267151,1778775040000,-500.0,0.00013698,2]
[422267154,1778775040000,-500.0,0.00013698,2]
[422267155,1778775040000,-500.0,0.00013698,2]
[422267156,1778775040000,-648.70051328,0.00013698,2]
[422267160,1778775040000,-500.0,0.00013698,2]
[422267170,1778775040000,-1362.12,0.000137,2]
[422267159,1778775040000,-500.0,0.00013698,2]
[422267162,1778775040000,-500.0,0.00013698,2]
[422267152,1778775040000,-500.0,0.00013698,2]
[422267172,1778775040000,-163.16,0.000137,2]
[422267174,1778775040000,-150.0,0.00013702,2]
[422267163,1778775040000,-520.29475132,0.00013698,2]
[422267240,1778775041000,-239.79654568,0.00014017,2]
[422267247,1778775041000,-150.0,0.0001405,2]
[422267239,1778775041000,-18902.49630838,0.00014014,2]
[422267246,1778775041000,-239.79654568,0.00014048,2]
[422267243,1778775041000,-239.79654568,0.00014033,2]
[422267242,1778775041000,-150.0,0.00014033,2]
[422267237,1778775041000,-150.0,0.00014009,2]
[422267236,1778775041000,-239.79654568,0.00014002,2]
[422267234,1778775041000,-3151.81,0.00014,2]
[422267238,1778775041000,-150.0,0.00014014,2]
[422267232,1778775041000,-4080.67207393,0.0001399,2]
[422267248,1778775041000,-150.0,0.00014055,2]
[422267241,1778775041000,-150.0,0.00014033,2]
[422267245,1778775041000,-5253.92286362,0.0001404,2]
[422267254,1778775041000,-150.0,0.00014078,2]
[422267250,1778775041000,-239.79654568,0.00014063,2]
[422267249,1778775041000,-150.0,0.00014059,2]
[422267252,1778775041000,-150.0,0.00014074,2]
[422267251,1778775041000,-150.0,0.00014064,2]
[422267253,1778775041000,-150.0,0.00014078,2]
[422267257,1778775041000,-150.0,0.00014095,2]
[422267256,1778775041000,-239.79654568,0.00014093,2]
[422267255,1778775041000,-239.79654568,0.00014078,2]
[422267261,1778775041000,-150.0,0.00014123,2]
[422267258,1778775041000,-239.79654568,0.00014108,2]
[422267259,1778775041000,-166.66,0.0001411,2]
[422267262,1778775041000,-239.79654568,0.00014123,2]
[422267244,1778775041000,-1182.46050237,0.0001404,2]
[422267235,1778775041000,-250.0,0.00014,2]
[422267203,1778775041000,-239.79654568,0.00013851,2]
[422267229,1778775041000,-150.0,0.00013987,2]
[422267260,1778775041000,-150.0,0.00014123,2]
[422267213,1778775041000,-150.0,0.00013896,2]
[422267205,1778775041000,-150.0,0.00013862,2]
[422267207,1778775041000,-239.79654568,0.00013866,2]
[422267211,1778775041000,-150.0,0.00013893,2]
[422267206,1778775041000,-150.0,0.00013862,2]
[422267210,1778775041000,-180.82,0.0001389,2]
[422267212,1778775041000,-150.0,0.00013896,2]
[422267204,1778775041000,-150.0,0.00013852,2]
[422267209,1778775041000,-239.79654568,0.00013881,2]
[422267208,1778775041000,-150.0,0.00013879,2]
[422267215,1778775041000,-239.79654568,0.00013912,2]
[422267223,1778775041000,-150.0,0.00013949,2]
[422267230,1778775041000,-150.0,0.00013987,2]
[422267222,1778775041000,-150.0,0.00013944,2]
[422267221,1778775041000,-239.79654568,0.00013942,2]
[422267225,1778775041000,-239.79654568,0.00013972,2]
[422267218,1778775041000,-150.0,0.00013933,2]
[422267219,1778775041000,-150.0,0.00013942,2]
[422267214,1778775041000,-239.79654568,0.00013896,2]
[422267216,1778775041000,-150.0,0.00013916,2]
[422267217,1778775041000,-239.79654568,0.00013927,2]
[422267226,1778775041000,-166.66,0.00013973,2]
[422267220,1778775041000,-150.0,0.00013942,2]
[422267227,1778775041000,-150.0,0.00013974,2]
[422267228,1778775041000,-150.0,0.00013987,2]
[422267231,1778775041000,-239.79654568,0.00013987,2]
[422267233,1778775041000,-2654.15,0.00014,2]
[422267224,1778775041000,-239.79654568,0.00013957,2]
[422267263,1778775041000,-150.0,0.0001413,2]
[422267265,1778775041000,-239.79654568,0.00014139,2]
[422267324,1778775041000,-150.0,0.00014424,2]
[422267298,1778775041000,-150.0,0.00014305,2]
[422267299,1778775041000,-150.0,0.00014305,2]
[422267297,1778775041000,-150.0,0.00014298,2]
[422267296,1778775041000,-150.0,0.00014295,2]
[422267303,1778775041000,-239.79654568,0.00014335,2]
[422267313,1778775041000,-239.79654568,0.00014381,2]
[422267302,1778775041000,-150.0,0.00014335,2]
[422267304,1778775041000,-150.0,0.00014338,2]
[422267306,1778775041000,-3162.0,0.00014345,2]
[422267305,1778775041000,-150.0,0.00014344,2]
[422267307,1778775041000,-12649.0,0.00014345,2]
[422267308,1778775041000,-150.0,0.00014351,2]
[422267309,1778775041000,-150.0,0.00014351,2]
[422267293,1778775041000,-150.0,0.00014273,2]
[422267312,1778775041000,-150.0,0.00014379,2]
[422267314,1778775041000,-166.66,0.00014384,2]
[422267316,1778775041000,-150.0,0.00014396,2]
[422267325,1778775041000,-239.79654568,0.00014426,2]
[422267322,1778775041000,-150.0,0.00014415,2]
[422267320,1778775041000,-150.0,0.0001441,2]
[422267319,1778775041000,-150.0,0.000144,2]
[422267317,1778775041000,-150.0,0.00014396,2]
[422267315,1778775041000,-10114.76832961,0.0001439,2]
[422267321,1778775041000,-239.79654568,0.00014411,2]
[422267323,1778775041000,-150.0,0.00014419,2]
[422267264,1778775041000,-150.0,0.00014136,2]
[422267326,1778775041000,-150.0,0.00014441,2]
[422267318,1778775041000,-239.79654568,0.00014396,2]
[422267310,1778775041000,-239.79654568,0.00014351,2]
[422267294,1778775041000,-239.79654568,0.00014275,2]
[422267311,1778775041000,-239.79654568,0.00014366,2]
[422267291,1778775041000,-239.79654568,0.0001426,2]
[422267266,1778775041000,-150.0,0.00014139,2]
[422267295,1778775041000,-239.79654568,0.0001429,2]
[422267275,1778775041000,-239.79654568,0.00014199,2]
[422267268,1778775041000,-239.79654568,0.00014154,2]
[422267278,1778775041000,-150.0,0.00014214,2]
[422267269,1778775041000,-150.0,0.00014169,2]
[422267270,1778775041000,-150.0,0.00014169,2]
[422267272,1778775041000,-150.0,0.00014176,2]
[422267274,1778775041000,-239.79654568,0.00014184,2]
[422267267,1778775041000,-889.55,0.0001414,2]
[422267277,1778775041000,-150.0,0.00014204,2]
[422267271,1778775041000,-239.79654568,0.00014169,2]
[422267276,1778775041000,-150.0,0.00014201,2]
[422267288,1778775041000,-150.0,0.00014257,2]
[422267273,1778775041000,-150.0,0.00014179,2]
[422267280,1778775041000,-239.79654568,0.00014214,2]
[422267289,1778775041000,-150.0,0.0001426,2]
[422267301,1778775041000,-239.79654568,0.0001432,2]
[422267292,1778775041000,-150.0,0.0001427,2]
[422267287,1778775041000,-150.0,0.00014247,21]
[422267285,1778775041000,-239.79654568,0.00014245,2]
[422267284,1778775041000,-150.0,0.00014237,2]
[422267300,1778775041000,-239.79654568,0.00014305,2]
[422267286,1778775041000,-166.66,0.00014247,2]
[422267282,1778775041000,-239.79654568,0.00014229,2]
[422267281,1778775041000,-150.0,0.00014217,2]
[422267279,1778775041000,-150.0,0.00014214,2]
[422267290,1778775041000,-150.0,0.0001426,2]
[422267283,1778775041000,-150.0,0.00014237,2]
[422267371,1778775042000,-150.0,0.00014623,2]
[422267381,1778775042000,-150.0,0.00014668,2]
[422267380,1778775042000,-150.0,0.00014668,2]
[422267379,1778775042000,-150.0,0.00014662,2]
[422267356,1778775042000,-889.55,0.00014585,2]
[422267358,1778775042000,-239.79654568,0.00014593,2]
[422267354,1778775042000,-150.0,0.00014581,2]
[422267365,1778775042000,-150.0,0.00014612,2]
[422267361,1778775042000,-150.0,0.00014595,2]
[422267374,1778775042000,-150.0,0.00014629,2]
[422267369,1778775042000,-150.0,0.00014623,2]
[422267377,1778775042000,-239.79654568,0.00014653,2]
[422267393,1778775042000,-1012.12,0.00014738,2]
[422267375,1778775042000,-239.79654568,0.00014638,2]
[422267378,1778775042000,-150.0,0.00014661,2]
[422267373,1778775042000,-239.79654568,0.00014623,2]
[422267382,1778775042000,-239.79654568,0.00014668,2]
[422267383,1778775042000,-239.79654568,0.00014684,2]
[422267391,1778775042000,-239.79654568,0.00014729,2]
[422267388,1778775042000,-150.0,0.00014714,2]
[422267390,1778775042000,-150.0,0.00014726,2]
[422267385,1778775042000,-150.0,0.00014701,2]
[422267384,1778775042000,-239.79654568,0.00014699,2]
[422267386,1778775042000,-150.0,0.00014703,2]
[422267362,1778775042000,-239.79654568,0.00014608,2]
[422267376,1778775042000,-150.0,0.0001464,2]
[422267367,1778775042000,-150.0,0.00014622,2]
[422267387,1778775042000,-150.0,0.00014714,2]
[422267360,1778775042000,-5024.36972956,0.00014595,2]
[422267328,1778775042000,-239.79654568,0.00014441,2]
[422267327,1778775042000,-150.0,0.00014441,2]
[422267330,1778775042000,-150.0,0.0001446,2]
[422267334,1778775042000,-150.0,0.00014487,2]
[422267331,1778775042000,-150.0,0.00014465,2]
[422267332,1778775042000,-239.79654568,0.00014472,2]
[422267329,1778775042000,-239.79654568,0.00014456,2]
[422267336,1778775042000,-239.79654568,0.00014487,2]
[422267333,1778775042000,-150.0,0.00014487,2]
[422267335,1778775042000,-150.0,0.00014487,2]
[422267348,1778775042000,-150.0,0.00014558,2]
[422267347,1778775042000,-239.79654568,0.00014547,2]
[422267363,1778775042000,-150.0,0.00014612,2]
[422267346,1778775042000,-150.0,0.00014541,2]
[422267338,1778775042000,-239.79654568,0.00014502,2]
[422267339,1778775042000,-473.77523904,0.0001451,2]
[422267340,1778775042000,-239.79654568,0.00014517,2]
[422267341,1778775042000,-150.0,0.00014525,2]
[422267343,1778775042000,-150.0,0.00014532,2]
[422267345,1778775042000,-239.79654568,0.00014532,2]
[422267344,1778775042000,-150.0,0.00014532,2]
[422267342,1778775042000,-150.0,0.0001453,2]
[422267350,1778775042000,-150.0,0.00014578,2]
[422267349,1778775042000,-239.79654568,0.00014562,2]
[422267351,1778775042000,-150.0,0.00014578,2]
[422267352,1778775042000,-239.79654568,0.00014578,2]
[422267337,1778775042000,-150.0,0.000145,2]
[422267392,1778775042000,-272.31,0.00014738,2]
[422267411,1778775042000,-3620.0,0.00014784,2]
[422267406,1778775042000,-239.79654568,0.00014759,2]
[422267430,1778775042000,-239.79654568,0.0001488,2]
[422267436,1778775042000,-151.0,0.000149,2]
[422267434,1778775042000,-239.79654568,0.00014895,2]
[422267439,1778775042000,-151.0,0.000149,2]
[422267448,1778775042000,-151.0,0.000149,2]
[422267443,1778775042000,-151.0,0.000149,2]
[422267444,1778775042000,-151.0,0.000149,2]
[422267441,1778775042000,-151.0,0.000149,2]
[422267446,1778775042000,-151.0,0.000149,2]
[422267445,1778775042000,-151.0,0.000149,2]
[422267451,1778775042000,-151.0,0.000149,2]
[422267440,1778775042000,-151.0,0.000149,2]
[422267429,1778775042000,-150.0,0.00014871,2]
[422267442,1778775042000,-151.0,0.000149,2]
[422267449,1778775042000,-151.0,0.000149,2]
[422267450,1778775042000,-151.0,0.000149,2]
[422267453,1778775042000,-151.0,0.000149,2]
[422267455,1778775042000,-18902.49630838,0.000149,2]
[422267452,1778775042000,-151.0,0.000149,2]
[422267454,1778775042000,-151.0,0.000149,2]
[422267456,1778775042000,-192.02289105,0.000149,2]
[422267459,1778775042000,-150.0,0.00014905,2]
[422267457,1778775042000,-25000.0,0.000149,3]
[422267458,1778775042000,-451.47074823,0.000149,2]
[422267460,1778775042000,-239.79654568,0.00014911,2]
[422267389,1778775042000,-239.79654568,0.00014714,2]
[422267447,1778775042000,-151.0,0.000149,2]
[422267433,1778775042000,-150.0,0.00014895,2]
[422267461,1778775042000,-150.0,0.00014915,2]
[422267435,1778775042000,-151.0,0.000149,2]
[422267409,1778775042000,-239.79654568,0.00014774,2]
[422267407,1778775042000,-150.0,0.00014772,2]
[422267397,1778775042000,-150.0,0.00014743,2]
[422267404,1778775042000,-150.0,0.00014759,2]
[422267410,1778775042000,-150.0,0.00014784,2]
[422267403,1778775042000,-150.0,0.00014756,2]
[422267400,1778775042000,-239.79654568,0.00014744,2]
[422267432,1778775042000,-150.0,0.00014895,2]
[422267405,1778775042000,-150.0,0.00014759,2]
[422267413,1778775042000,-150.0,0.00014791,2]
[422267414,1778775042000,-150.0,0.00014799,2]
[422267415,1778775042000,-150.0,0.00014805,2]
[422267418,1778775042000,-239.79654568,0.00014805,2]
[422267412,1778775042000,-239.79654568,0.0001479,2]
[422267424,1778775042000,-150.0,0.0001485,2]
[422267416,1778775042000,-150.0,0.00014805,2]
[422267428,1778775042000,-239.79654568,0.00014865,2]
[422267437,1778775042000,-151.0,0.000149,2]
[422267427,1778775042000,-150.0,0.00014865,2]
[422267426,1778775042000,-150.0,0.00014856,2]
[422267438,1778775042000,-151.0,0.000149,2]
[422267422,1778775042000,-150.0,0.00014844,2]
[422267419,1778775042000,-239.79654568,0.0001482,2]
[422267421,1778775042000,-239.79654568,0.00014835,2]
[422267420,1778775042000,-150.0,0.00014824,2]
[422267425,1778775042000,-239.79654568,0.0001485,2]
[422267423,1778775042000,-150.0,0.0001485,2]
[422267502,1778775043000,-897.185339,0.00015,2]
[422267508,1778775043000,-598.268637,0.00015,2]
[422267509,1778775043000,-598.268637,0.00015,2]
[422267511,1778775043000,-151.0,0.00015,2]
[422267491,1778775043000,-9950123.68643437,0.00015,2]
[422267500,1778775043000,-897.185339,0.00015,2]
[422267494,1778775043000,-170.074632,0.00015,2]
[422267492,1778775043000,-170.074632,0.00015,2]
[422267493,1778775043000,-170.074632,0.00015,2]
[422267489,1778775043000,-2531.85443811,0.00015,14]
[422267490,1778775043000,-8081.766424,0.00015,2]
[422267513,1778775043000,-151.0,0.00015,2]
[422267518,1778775043000,-580.718755,0.00015068,2]
[422267506,1778775043000,-598.268637,0.00015,2]
[422267503,1778775043000,-151.0,0.00015,2]
[422267501,1778775043000,-897.185339,0.00015,2]
[422267505,1778775043000,-151.0,0.00015,2]
[422267512,1778775043000,-151.0,0.00015,2]
[422267504,1778775043000,-151.0,0.00015,2]
[422267510,1778775043000,-151.0,0.00015,2]
[422267515,1778775043000,-151.0,0.00015,2]
[422267525,1778775043000,-200.0,0.00015455,7]
[422267514,1778775043000,-151.0,0.00015,2]
[422267516,1778775043000,-889.55,0.0001503,2]
[422267496,1778775043000,-170.074632,0.00015,2]
[422267507,1778775043000,-598.268637,0.00015,2]
[422267488,1778775043000,-2075.94096564,0.00015,2]
[422267478,1778775043000,-226.92243394,0.00014986,2]
[422267499,1778775043000,-897.185339,0.00015,2]
[422267462,1778775043000,-150.0,0.00014921,2]
[422267463,1778775043000,-239.79654568,0.00014926,2]
[422267465,1778775043000,-5253.92286362,0.0001493,2]
[422267469,1778775043000,-150.0,0.00014946,2]
[422267466,1778775043000,-150.0,0.00014941,2]
[422267464,1778775043000,-1182.46050237,0.0001493,2]
[422267467,1778775043000,-150.0,0.00014941,2]
[422267473,1778775043000,-185.30906992,0.00014986,2]
[422267470,1778775043000,-1106.10975102,0.00014949,2]
[422267474,1778775043000,-257.20275532,0.00014986,2]
[422267472,1778775043000,-239.79654568,0.00014971,2]
[422267468,1778775043000,-239.79654568,0.00014941,2]
[422267471,1778775043000,-239.79654568,0.00014956,2]
[422267477,1778775043000,-166.64300097,0.00014986,2]
[422267475,1778775043000,-216.21635276,0.00014986,2]
[422267479,1778775043000,-150.64066077,0.00014986,2]
[422267481,1778775043000,-178.11723745,0.00014986,2]
[422267484,1778775043000,-300.0,0.00014999,2]
[422267480,1778775043000,-232.9454173,0.00014986,2]
[422267486,1778775043000,-300.0,0.00014999,2]
[422267483,1778775043000,-300.0,0.00014999,2]
[422267482,1778775043000,-239.79654568,0.00014986,2]
[422267476,1778775043000,-152.22223688,0.00014986,2]
[422267485,1778775043000,-681.41248099,0.00014999,2]
[422267487,1778775043000,-14160950.73086414,0.00015,2]
[422267498,1778775043000,-151.0,0.00015,2]
[422267521,1778775043000,-580.718755,0.00015068,2]
[422267524,1778775043000,-153.0,0.00015386,2]
[422267519,1778775043000,-580.718755,0.00015068,2]
[422267553,1778775043000,-650.0,0.00015616,2]
[422267558,1778775043000,-400.0,0.00015616,2]
[422267560,1778775043000,-17709.0,0.0001578,2]
[422267559,1778775043000,-3801.0,0.0001578,2]
[422267556,1778775043000,-650.0,0.00015616,2]
[422267561,1778775043000,-1000.0,0.00015799,7]
[422267565,1778775043000,-150.0,0.000159,2]
[422267562,1778775043000,-180.82,0.00015874,2]
[422267563,1778775043000,-150.0,0.000159,2]
[422267564,1778775043000,-150.0,0.000159,2]
[422267566,1778775043000,-150.0,0.000159,2]
[422267568,1778775043000,-889.55,0.0001592,2]
[422267551,1778775043000,-2000.0,0.00015616,2]
[422267572,1778775043000,-8183.64,0.00016116,2]
[422267569,1778775043000,-424.0,0.00016,2]
[422267571,1778775043000,-300.0,0.00016,2]
[422267574,1778775043000,-889.55,0.00016365,2]
[422267576,1778775043000,-1362.12,0.000164,2]
[422267579,1778775043000,-151.0,0.00016438,2]
[422267577,1778775043000,-1558.1,0.00016438,2]
[422267573,1778775043000,-3862.0,0.00016261,2]
[422267575,1778775043000,-8508.0,0.000164,2]
[422267578,1778775043000,-480.43,0.00016438,2]
[422267580,1778775043000,-4387.82,0.00016484,2]
[422267581,1778775043000,-4442.34461827,0.000165,2]
[422267522,1778775043000,-150.0,0.00015386,2]
[422267570,1778775043000,-214.95940296,0.00016,3]
[422267554,1778775043000,-650.0,0.00015616,2]
[422267567,1778775043000,-150.0,0.000159,2]
[422267555,1778775043000,-650.0,0.00015616,2]
[422267557,1778775043000,-650.0,0.00015616,2]
[422267517,1778775043000,-480.43,0.00015068,2]
[422267520,1778775043000,-580.718755,0.00015068,2]
[422267535,1778775043000,-1663.0,0.00015499,2]
[422267538,1778775043000,-1447.0,0.00015563,2]
[422267539,1778775043000,-650.0,0.00015563,2]
[422267536,1778775043000,-750.0,0.00015499,2]
[422267526,1778775043000,-889.55,0.00015475,2]
[422267537,1778775043000,-665.0,0.00015499,2]
[422267527,1778775043000,-2000.0,0.00015499,2]
[422267528,1778775043000,-2000.0,0.00015499,2]
[422267531,1778775043000,-2000.0,0.00015499,2]
[422267529,1778775043000,-2000.0,0.00015499,2]
[422267523,1778775043000,-150.0,0.00015386,2]
[422267552,1778775043000,-1603.0,0.00015616,2]
[422267549,1778775043000,-2000.0,0.00015616,2]
[422267546,1778775043000,-650.0,0.00015563,2]
[422267550,1778775043000,-2000.0,0.00015616,2]
[422267532,1778775043000,-2000.0,0.00015499,2]
[422267548,1778775043000,-499.73797022,0.00015584,2]
[422267547,1778775043000,-649.0,0.00015563,2]
[422267545,1778775043000,-650.0,0.00015563,2]
[422267541,1778775043000,-650.0,0.00015563,2]
[422267540,1778775043000,-650.0,0.00015563,2]
[422267534,1778775043000,-2000.0,0.00015499,2]
[422267533,1778775043000,-2000.0,0.00015499,2]
[422267543,1778775043000,-650.0,0.00015563,2]
[422267624,1778775044000,-1642.0,0.00019468,2]
[422267623,1778775044000,-151.16892255,0.000192,2]
[422267625,1778775044000,-1200.0,0.00019468,2]
[422267621,1778775044000,-472.586372,0.00019178,2]
[422267618,1778775044000,-225.842796,0.00019178,2]
[422267620,1778775044000,-472.586372,0.00019178,2]
[422267613,1778775044000,-769.52305994,0.000187,2]
[422267619,1778775044000,-472.586372,0.00019178,2]
[422267614,1778775044000,-286.52,0.00019,2]
[422267615,1778775044000,-500.0,0.00019,2]
[422267622,1778775044000,-472.586372,0.00019178,2]
[422267617,1778775044000,-151.0,0.00019178,2]
[422267616,1778775044000,-272.31,0.00019176,2]
[422267626,1778775044000,-1200.0,0.00019468,2]
[422267643,1778775044000,-500.0,0.0002,2]
[422267630,1778775044000,-1584.0,0.00019635,2]
[422267631,1778775044000,-296.10258314,0.00019805,2]
[422267628,1778775044000,-968.0,0.00019468,2]
[422267629,1778775044000,-150.0,0.000196,2]
[422267633,1778775044000,-300.0,0.00019999,2]
[422267634,1778775044000,-300.0,0.00019999,2]
[422267632,1778775044000,-2003.81543517,0.000199,3]
[422267635,1778775044000,-542.0,0.0002,2]
[422267637,1778775044000,-159.0,0.0002,2]
[422267640,1778775044000,-5955.0,0.0002,2]
[422267641,1778775044000,-365.0,0.0002,2]
[422267639,1778775044000,-6111.0,0.0002,2]
[422267627,1778775044000,-1200.0,0.00019468,2]
[422267610,1778775044000,-163.709,0.00018575,2]
[422267582,1778775044000,-7431.94628016,0.000165,2]
[422267611,1778775044000,-1362.12,0.000186,2]
[422267584,1778775044000,-14253.66950235,0.000166,2]
[422267583,1778775044000,-2326.77,0.0001658,2]
[422267585,1778775044000,-156.58,0.00016712,2]
[422267586,1778775044000,-10000.0,0.00016754,2]
[422267587,1778775044000,-889.55,0.0001681,2]
[422267596,1778775044000,-11974.0,0.00017358,2]
[422267593,1778775044000,-1000.0,0.00017111,2]
[422267592,1778775044000,-150.0,0.00017111,2]
[422267588,1778775044000,-312.89,0.00016896,2]
[422267590,1778775044000,-500.0,0.00017,2]
[422267595,1778775044000,-889.55,0.00017255,2]
[422267589,1778775044000,-167.89,0.00016927,2]
[422267594,1778775044000,-1852.42,0.00017255,2]
[422267591,1778775044000,-1491.22,0.00017,2]
[422267598,1778775044000,-1000.0,0.000179,7]
[422267597,1778775044000,-180.82,0.00017859,2]
[422267601,1778775044000,-350.0,0.00018,2]
[422267608,1778775044000,-769.52305994,0.000185,2]
[422267600,1778775044000,-500.0,0.00018,2]
[422267605,1778775044000,-2000.0,0.00018399,2]
[422267599,1778775044000,-769.52305994,0.00018,2]
[422267602,1778775044000,-769.52305994,0.000182,2]
[422267604,1778775044000,-156.0,0.00018265,2]
[422267607,1778775044000,-1558.1,0.0001841,2]
[422267606,1778775044000,-769.52305994,0.000184,2]
[422267603,1778775044000,-2327.69898061,0.00018262,2]
[422267609,1778775044000,-2327.69898061,0.00018573,2]
[422267612,1778775044000,-163.0,0.00018675,2]
[422267642,1778775044000,-2000.0,0.0002,2]
[422267638,1778775044000,-15000.0,0.0002,2]
[422267656,1778775044000,-26760.20964395,0.0002,2]
[422267680,1778775044000,-151.87558147,0.000205,18]
[422267672,1778775044000,-527.7696768,0.0002012,2]
[422267674,1778775044000,-3151.81,0.000202,2]
[422267679,1778775044000,-2000.0,0.00020448,2]
[422267678,1778775044000,-2873.77165228,0.0002041,30]
[422267684,1778775044000,-501.07,0.00020547,2]
[422267694,1778775044000,-4955.9,0.00020548,2]
[422267683,1778775044000,-300.0,0.00020547,2]
[422267685,1778775044000,-500.0,0.00020547,2]
[422267692,1778775044000,-4955.9,0.00020548,2]
[422267686,1778775044000,-571.05,0.00020547,2]
[422267695,1778775044000,-4955.9,0.00020548,2]
[422267691,1778775044000,-4955.9,0.00020548,2]
[422267677,1778775044000,-1558.1,0.00020381,2]
[422267693,1778775044000,-4955.9,0.00020548,2]
[422267687,1778775044000,-4955.9,0.00020548,2]
[422267689,1778775044000,-4955.9,0.00020548,2]
[422267690,1778775044000,-4955.9,0.00020548,2]
[422267697,1778775044000,-4955.9,0.00020548,2]
[422267696,1778775044000,-4955.9,0.00020548,2]
[422267699,1778775044000,-4955.9,0.00020548,2]
[422267700,1778775044000,-4955.9,0.00020548,2]
[422267698,1778775044000,-4955.9,0.00020548,2]
[422267701,1778775044000,-4955.9,0.00020548,2]
[422267702,1778775044000,-4955.9,0.00020548,2]
[422267704,1778775044000,-4955.9,0.00020548,2]
[422267703,1778775044000,-4955.9,0.00020548,2]
[422267645,1778775044000,-175.8020267,0.0002,2]
[422267688,1778775044000,-4955.9,0.00020548,2]
[422267675,1778775044000,-200.0,0.00020341,2]
[422267636,1778775044000,-166.0,0.0002,2]
[422267682,1778775044000,-154.98586496,0.000205,18]
[422267671,1778775044000,-2958.630803,0.0002002,2]
[422267655,1778775044000,-3950.0,0.0002,2]
[422267646,1778775044000,-175.8020267,0.0002,2]
[422267649,1778775044000,-175.80202671,0.0002,2]
[422267648,1778775044000,-175.8020267,0.0002,2]
[422267650,1778775044000,-7076.52822619,0.0002,2]
[422267653,1778775044000,-25906.72029551,0.0002,2]
[422267647,1778775044000,-175.8020267,0.0002,2]
[422267652,1778775044000,-178.67497879,0.0002,2]
[422267651,1778775044000,-1552.79383552,0.0002,2]
[422267654,1778775044000,-1398.0,0.0002,2]
[422267658,1778775044000,-6846.91576438,0.0002,2]
[422267668,1778775044000,-8393.88,0.0002,2]
[422267669,1778775044000,-155.0,0.0002,2]
[422267644,1778775044000,-1882.0,0.0002,2]
[422267661,1778775044000,-152.0,0.0002,2]
[422267657,1778775044000,-1310.90285881,0.0002,2]
[422267676,1778775044000,-180.24546421,0.00020376,2]
[422267673,1778775044000,-2654.15,0.000202,2]
[422267670,1778775044000,-2000.0,0.0002001,2]
[422267662,1778775044000,-258.0,0.0002,2]
[422267667,1778775044000,-189.0,0.0002,2]